fUST/lending_fUST_20240227
["ID","MTS","AMOUNT","RATE_DAILY","PERIOD"]
[315397945,1709010643414,-508.39792088,0.00020273,2]
[315397946,1709010643423,-1747.84,0.00020273,2]
[315397947,1709010643433,-2413.44,0.00020273,2]
[315397948,1709010643442,-633.26,0.00020273,2]
[315397949,1709010643452,-500.0,0.00020273,2]
[315397950,1709010643462,-2168.07,0.00020273,2]
[315397951,1709010643472,-3311.33,0.00020273,2]
[315397952,1709010643481,-744.88,0.00020273,2]
[315397953,1709010643490,-331.17941528,0.00020273,2]
[315397954,1709010643500,-500.0,0.00020273,2]
[315397955,1709010643510,-2483.87,0.00020273,2]
[315397957,1709010643519,-1710.37,0.00020273,2]
[315397959,1709010643529,-500.0,0.00020273,2]
[315397961,1709010643539,-153.0,0.000203,2]
[315397963,1709010643548,-1213.56535489,0.00020328,2]
[315397965,1709010643557,-1213.57750513,0.00020328,2]
[315397967,1709010643567,-1823.09535831,0.00020335,2]
[315397969,1709010643575,-881.45008725,0.00020379,2]
[315397971,1709010643585,-1823.09535831,0.00020415,2]
[315397973,1709010643595,-153.0,0.00020466,2]
[315397975,1709010643604,-1823.09535831,0.00020496,2]
[315397977,1709010643613,-418.81192967,0.0002052,2]
[315397979,1709010643624,-500.0,0.0002052,2]
[315397981,1709010643633,-152.95049413,0.0002052,2]
[315397983,1709010643643,-50000.0,0.00020521,5]
[315397985,1709010643652,-166.666666,0.00020524,2]
[315397987,1709010643662,-747.72914726,0.00020545,2]
[315397989,1709010643671,-292.24516176,0.00020545,2]
[315397991,1709010643680,-958.54350043,0.00020545,2]
[315397993,1709010643689,-736.36,0.00020546,2]
[315397995,1709010643699,-736.36,0.00020546,2]
[315397997,1709010643708,-736.36,0.00020546,2]
[315397999,1709010643717,-736.36,0.00020546,2]
[315398001,1709010643726,-736.36,0.00020546,2]
[315398003,1709010643734,-736.36,0.00020546,2]
[315398005,1709010643743,-736.49649597,0.00020546,2]
[315398007,1709010643752,-500.0,0.00020547,2]
[315398009,1709010643761,-542.79,0.00020547,2]
[315398011,1709010643770,-500.0,0.00020547,2]
[315398013,1709010643781,-500.0,0.00020547,2]
[315398015,1709010643789,-500.0,0.00020547,2]
[315398017,1709010643798,-1217.51,0.00020547,2]
[315398019,1709010643808,-1033.93,0.00020547,2]
[315398021,1709010643817,-592.5,0.00020547,2]
[315398023,1709010643827,-500.0,0.00020547,2]
[315398025,1709010643836,-500.0,0.00020547,2]
[315398027,1709010643845,-2830.74,0.00020547,2]
[315398029,1709010643854,-1094.46,0.00020547,2]
[315398031,1709010643863,-500.0,0.00020547,2]
[315398033,1709010643872,-1804.89,0.00020547,2]
[315398035,1709010643881,-500.0,0.00020547,2]
[315398036,1709010643890,-224.5571896,0.00020547,2]
[315398037,1709010643899,-422.30378237,0.00020547,2]
[315398038,1709010643908,-410.31382454,0.00020547,2]
[315398039,1709010643918,-500.0,0.00020547,2]
[315398040,1709010643927,-500.0,0.00020547,2]
[315398041,1709010643935,-282.98479173,0.00020547,2]
[315398042,1709010643944,-1658.28,0.00020547,2]
[315398043,1709010643953,-1388.35,0.00020547,2]
[315398044,1709010643962,-500.0,0.00020547,2]
[315398045,1709010643971,-500.0,0.00020547,2]
[315398046,1709010643980,-500.0,0.00020547,2]
[315398047,1709010643989,-1156.01,0.00020547,2]
[315398048,1709010643998,-1548.08,0.00020547,2]
[315398049,1709010644007,-1218.54,0.00020547,2]
[315398050,1709010644016,-14771.65,0.00020547,2]
[315398051,1709010644027,-500.0,0.00020547,2]
[315398052,1709010644036,-735.27,0.00020547,2]
[315398053,1709010644046,-500.0,0.00020547,2]
[315398054,1709010644055,-766.55,0.00020547,2]
[315398055,1709010644064,-771.92,0.00020547,2]
[315398056,1709010644073,-782.66,0.00020547,2]
[315398057,1709010644083,-615.15729319,0.00020547,2]
[315398058,1709010644092,-8308.98,0.00020547,2]
[315398059,1709010644102,-950.82,0.00020547,2]
[315398061,1709010644112,-1281.3,0.00020547,2]
[315398063,1709010644120,-16461.22,0.00020547,2]
[315398065,1709010644130,-3200.6,0.00020547,2]
[315398067,1709010644140,-734.37,0.00020547,2]
[315398069,1709010644149,-9602.6665649,0.00020547,3]
[315398071,1709010644158,-6073.11175297,0.00020547,3]
[315398073,1709010644167,-6073.11175297,0.00020547,3]
[315398075,1709010644176,-6073.11175297,0.00020547,3]
[315398077,1709010644186,-6073.11175297,0.00020547,3]
[315398079,1709010644196,-6073.11175297,0.00020547,3]
[315398081,1709010644208,-6073.11175297,0.00020547,3]
[315398083,1709010644217,-6073.11175297,0.00020547,3]
[315398085,1709010644226,-6073.11175297,0.00020547,3]
[315398087,1709010644235,-6073.11175297,0.00020547,3]
[315398089,1709010644244,-6073.11075297,0.00020547,3]
[315398091,1709010644254,-1192.96,0.00020547,2]
[315398093,1709010644263,-1349.58,0.00020547,2]
[315398095,1709010644272,-6283.55,0.00020547,2]
[315398097,1709010644284,-500.0,0.00020547,2]
[315398099,1709010644293,-3336.56,0.00020547,2]
[315398101,1709010644302,-1747.84,0.00020547,2]
[315398103,1709010644311,-2413.44,0.00020547,2]
[315398105,1709010644321,-633.26,0.00020547,2]
[315398107,1709010644330,-500.0,0.00020547,2]
[315398109,1709010644339,-2168.07,0.00020547,2]
[315398111,1709010644348,-3311.33,0.00020547,2]
[315398113,1709010644357,-744.88,0.00020547,2]
[315398115,1709010644366,-500.0,0.00020547,2]
[315398117,1709010644375,-2483.87,0.00020547,2]
[315398119,1709010644384,-1710.37,0.00020547,2]
[315398121,1709010644392,-500.0,0.00020547,2]
[315398123,1709010644401,-1823.09535831,0.00020577,2]
[315398125,1709010644410,-75402.60407784,0.0002058,2]
[315398127,1709010644420,-5000.0,0.00020646,5]
[315398129,1709010644430,-5000.0,0.00020646,5]
[315398130,1709010644439,-5000.0,0.00020646,5]
[315398131,1709010644448,-18949.71990234,0.00020646,3]
[315398132,1709010644457,-5000.0,0.00020655,5]
[315398133,1709010644466,-58405.37373233,0.00020657,3]
[315398134,1709010644476,-34274.76301516,0.00020657,4]
[315398135,1709010644485,-5000.0,0.00020657,5]
[315398136,1709010644494,-5000.0,0.00020657,5]
[315398137,1709010644503,-5000.0,0.00020657,5]
[315398138,1709010644512,-15782.49858726,0.00020657,4]
[315398139,1709010644522,-5000.0,0.00020657,5]
[315398140,1709010644532,-16950.00562386,0.00020657,3]
[315398141,1709010644541,-1823.09535831,0.00020658,2]
[315398142,1709010644551,-533.95168459,0.00020687,2]
[315398143,1709010644560,-6851.4396559,0.00020687,2]
[315398144,1709010644570,-12128.27810111,0.00020687,2]
[315398145,1709010644580,-7152.74376121,0.00020687,2]
[315398146,1709010644589,-1939.2564887,0.00020688,2]
[315398147,1709010644599,-224.87406014,0.00020688,2]
[315398148,1709010644608,-1000.0,0.00020688,5]
[315398149,1709010644618,-396.18731536,0.00020688,2]
[315398150,1709010644628,-275.94769178,0.00020688,2]
[315398151,1709010644637,-4885.25900424,0.00020688,2]
[315398153,1709010644646,-679.33747578,0.00020688,2]
[315398155,1709010644656,-232.01951804,0.00020688,2]
[315398157,1709010644665,-179.40056727,0.00020688,2]
[315398159,1709010644674,-1000.0,0.00020688,5]
[315398160,1709010644684,-6530.15470248,0.00020688,2]
[315398161,1709010644693,-1000.0,0.00020688,5]
[315398162,1709010644703,-881.45008725,0.00020721,2]
[315398163,1709010644712,-1823.09535831,0.00020738,2]
[315398164,1709010644722,-1000.0,0.00020756,2]
[315398165,1709010644731,-1324.46051599,0.000208,2]
[315398166,1709010644740,-155.42848835,0.0002081,2]
[315398167,1709010644750,-159.80558045,0.0002081,2]
[315398168,1709010644760,-281.55953211,0.00020811,2]
[315398169,1709010644769,-256.63,0.00020812,7]
[315398170,1709010644779,-1823.09535831,0.00020819,2]
[315398171,1709010644788,-194.26769162,0.0002082,2]
[315398172,1709010644797,-500.0,0.00020821,2]
[315398173,1709010644807,-542.79,0.00020821,2]
[315398174,1709010644816,-500.0,0.00020821,2]
[315398175,1709010644825,-500.0,0.00020821,2]
[315398176,1709010644834,-625.77125081,0.00020821,2]
[315398177,1709010644843,-1217.51,0.00020821,2]
[315398178,1709010644853,-1033.93,0.00020821,2]
[315398179,1709010644862,-592.5,0.00020821,2]
[315398180,1709010644872,-500.0,0.00020821,2]
[315398181,1709010644881,-500.0,0.00020821,2]
[315398182,1709010644890,-2830.74,0.00020821,2]
[315398183,1709010644900,-1094.46,0.00020821,2]
[315398184,1709010644909,-500.0,0.00020821,2]
[315398185,1709010644918,-1804.89,0.00020821,2]
[315398186,1709010644928,-500.0,0.00020821,2]
[315398187,1709010644938,-500.0,0.00020821,2]
[315398188,1709010644947,-500.0,0.00020821,2]
[315398189,1709010644957,-2641.358379,0.00020821,2]
[315398190,1709010644966,-2641.358379,0.00020821,2]
[315398191,1709010644975,-1658.28,0.00020821,2]
[315398192,1709010644985,-1388.35,0.00020821,2]
[315398193,1709010644994,-547.67624046,0.00020821,2]
[315398194,1709010645003,-500.0,0.00020821,2]
[315398195,1709010645013,-500.0,0.00020821,2]
[315398196,1709010645022,-1156.01,0.00020821,2]
[315398197,1709010645032,-1548.08,0.00020821,2]
[315398198,1709010645042,-630.377174,0.00020821,2]
[315398199,1709010645051,-630.377174,0.00020821,2]
[315398200,1709010645061,-1218.54,0.00020821,2]
[315398201,1709010645070,-14771.65,0.00020821,2]
[315398202,1709010645079,-151.0,0.00020821,2]
[315398203,1709010645088,-500.0,0.00020821,2]
[315398204,1709010645097,-735.27,0.00020821,2]
[315398205,1709010645107,-500.0,0.00020821,2]
[315398206,1709010645116,-766.55,0.00020821,2]
[315398207,1709010645126,-771.92,0.00020821,2]
[315398208,1709010645135,-782.66,0.00020821,2]
[315398209,1709010645144,-8308.98,0.00020821,2]
[315398210,1709010645153,-950.82,0.00020821,2]
[315398211,1709010645163,-1281.3,0.00020821,2]
[315398212,1709010645172,-151.0,0.00020821,2]
[315398213,1709010645181,-16461.22,0.00020821,2]
[315398214,1709010645192,-151.0,0.00020821,2]
[315398215,1709010645204,-3200.6,0.00020821,2]
[315398216,1709010645214,-734.37,0.00020821,2]
[315398217,1709010645224,-1192.96,0.00020821,2]
[315398218,1709010645233,-1349.58,0.00020821,2]
[315398219,1709010645242,-6283.55,0.00020821,2]
[315398220,1709010645252,-500.0,0.00020821,2]
[315398221,1709010645261,-3336.56,0.00020821,2]
[315398222,1709010645270,-1747.84,0.00020821,2]
[315398223,1709010645281,-2413.44,0.00020821,2]
[315398224,1709010645290,-633.26,0.00020821,2]
[315398225,1709010645300,-2168.07,0.00020821,2]
[315398226,1709010645309,-316.02608932,0.00020821,2]
[315398227,1709010645319,-3311.33,0.00020821,2]
[315398228,1709010645328,-744.88,0.00020821,2]
[315398229,1709010645338,-500.0,0.00020821,2]
[315398230,1709010645347,-2483.87,0.00020821,2]
[315398231,1709010645356,-1710.37,0.00020821,2]
[315398232,1709010645366,-500.0,0.00020821,2]
[315398233,1709010645375,-1000.0,0.00020857,2]
[315398234,1709010645384,-200.6117409,0.00020877,2]
[315398235,1709010645394,-418.8771798,0.00020877,2]
[315398236,1709010645403,-200.6117409,0.00020877,2]
[315398237,1709010645412,-200.5244244,0.00020877,2]
[315398238,1709010645421,-234.4324,0.00020895,2]
[315398239,1709010645431,-1823.09535831,0.000209,2]
[315398240,1709010645441,-88049.25942516,0.0002097,2]
[315398241,1709010645663,-500.0,0.00019178,2]
[315398242,1709010645672,-500.0,0.00019452,2]
[315398243,1709010645683,-24555.94273871,0.0002097,2]
[315398244,1709010645698,-774.57842176,0.0002097,2]
[315398245,1709010645910,-500.0,0.00019178,2]
[315398246,1709010645919,-132.59647099,0.00019452,2]
[315398361,1709010835141,47311.71754963,0.00018,2]
[315398362,1709010868299,8006.36258468,0.00018,2]
[315398366,1709011189557,2823.2473028,0.00018153,2]
[315398422,1709011831950,-155.18622347,0.00018315,2]
[315398424,1709011831959,-1591.62159516,0.00018316,2]
[315398426,1709011831969,-660.70492924,0.000189,2]
[315398428,1709011831978,-292.24516176,0.00019176,2]
[315398430,1709011831987,-958.54350043,0.00019176,2]
[315398432,1709011831997,-747.72914726,0.00019176,2]
[315398434,1709011832006,-1213.56535489,0.00019177,2]
[315398436,1709011832016,-500.0,0.00019177,2]
[315398438,1709011832024,-503.3806749,0.00019178,2]
[315398440,1709011832034,-984.2,0.00019178,2]
[315398442,1709011832043,-500.17905567,0.00019178,2]
[315398444,1709011832052,-500.0,0.00019178,2]
[315398446,1709011832061,-500.0,0.00019178,2]
[315398448,1709011832072,-445.96295239,0.00019178,2]
[315398450,1709011832081,-500.0,0.00019178,2]
[315398452,1709011832090,-500.0,0.00019178,2]
[315398454,1709011832100,-500.0,0.00019178,2]
[315398456,1709011832110,-500.0,0.00019178,2]
[315398457,1709011832121,-582.41093118,0.00019178,2]
[315398458,1709011832131,-452.04550329,0.00019178,2]
[315398459,1709011832140,-500.0,0.00019178,2]
[315398460,1709011832149,-197.79317948,0.00019178,2]
[315398462,1709011832158,-500.0,0.00019178,2]
[315398464,1709011832168,-500.39180037,0.00019178,2]
[315398465,1709011832177,-607.49573442,0.00019178,2]
[315398466,1709011832186,-616.29533652,0.00019178,2]
[315398467,1709011832195,-517.31375723,0.00019178,2]
[315398469,1709011832204,-501.88399839,0.00019178,2]
[315398471,1709011832213,-500.0,0.00019178,2]
[315398473,1709011832223,-500.0,0.00019178,2]
[315398475,1709011832231,-500.0,0.00019178,2]
[315398477,1709011832240,-500.77842844,0.00019178,2]
[315398479,1709011832249,-500.0,0.00019178,2]
[315398481,1709011832259,-500.0,0.00019178,2]
[315398483,1709011832267,-591.67167096,0.00019178,2]
[315398485,1709011832276,-500.0,0.00019178,2]
[315398487,1709011832285,-500.0,0.00019178,2]
[315398489,1709011832295,-1139.6,0.00019178,2]
[315398491,1709011832304,-500.0,0.00019178,2]
[315398493,1709011832313,-500.0,0.00019178,2]
[315398495,1709011832322,-500.0,0.00019178,2]
[315398497,1709011832331,-511.86785933,0.00019178,2]
[315398499,1709011832340,-500.0,0.00019178,2]
[315398501,1709011832349,-501.75603767,0.00019178,2]
[315398503,1709011832358,-501.23926151,0.00019178,2]
[315398505,1709011832368,-480.33059787,0.00019178,2]
[315398507,1709011832377,-500.35008704,0.00019178,2]
[315398509,1709011832386,-500.0,0.00019178,2]
[315398511,1709011832394,-500.0,0.00019178,2]
[315398513,1709011832403,-500.0,0.00019178,2]
[315398515,1709011832412,-500.0,0.00019178,2]
[315398517,1709011832421,-500.0,0.00019178,2]
[315398519,1709011832430,-500.0,0.00019178,2]
[315398521,1709011832439,-500.0,0.00019178,2]
[315398523,1709011832448,-500.0,0.00019178,2]
[315398525,1709011832457,-500.0,0.00019178,2]
[315398527,1709011832466,-494.85355284,0.00019178,2]
[315398529,1709011832475,-500.0,0.00019178,2]
[315398531,1709011832484,-308.15816311,0.00019178,2]
[315398533,1709011832493,-500.0,0.00019178,2]
[315398535,1709011832502,-500.0,0.00019178,2]
[315398537,1709011832511,-500.0,0.00019178,2]
[315398539,1709011832520,-500.0,0.00019178,2]
[315398541,1709011832530,-500.0,0.00019178,2]
[315398543,1709011832542,-500.0,0.00019178,2]
[315398545,1709011832551,-500.36013497,0.00019178,2]
[315398547,1709011832561,-500.0,0.00019178,2]
[315398549,1709011832570,-500.0,0.00019178,2]
[315398551,1709011832579,-500.0,0.00019178,2]
[315398553,1709011832589,-500.0,0.00019178,2]
[315398554,1709011832597,-500.0,0.00019178,2]
[315398555,1709011832607,-500.0,0.00019178,2]
[315398556,1709011832617,-502.01239296,0.00019178,2]
[315398557,1709011832629,-500.0,0.00019178,2]
[315398558,1709011832639,-500.0,0.00019178,2]
[315398559,1709011832648,-500.0,0.00019178,2]
[315398560,1709011832657,-500.0,0.00019178,2]
[315398561,1709011832666,-407.92151327,0.00019178,2]
[315398562,1709011832676,-1000.0,0.00019178,2]
[315398563,1709011832685,-501.73593943,0.00019178,2]
[315398564,1709011832694,-500.0,0.00019178,2]
[315398565,1709011832704,-500.0,0.00019178,2]
[315398566,1709011832713,-500.0,0.00019178,2]
[315398567,1709011832723,-501.59626251,0.00019178,2]
[315398568,1709011832732,-500.0,0.00019178,2]
[315398570,1709011832741,-646.16620991,0.00019178,2]
[315398571,1709011832750,-500.0,0.00019178,2]
[315398573,1709011832760,-500.0,0.00019178,2]
[315398575,1709011832769,-500.0,0.00019178,2]
[315398577,1709011832779,-201.80826819,0.00019178,2]
[315398579,1709011832788,-500.0,0.00019178,2]
[315398581,1709011832798,-612.43,0.00019178,2]
[315398583,1709011832807,-502.15746347,0.00019178,2]
[315398584,1709011832816,-500.0,0.00019178,2]
[315398586,1709011832826,-627.07237057,0.00019178,2]
[315398588,1709011832835,-500.0,0.00019178,2]
[315398589,1709011832844,-500.0,0.00019178,2]
[315398590,1709011832854,-500.0,0.00019178,2]
[315398591,1709011832864,-230.19847541,0.00019178,2]
[315398592,1709011832873,-500.0,0.00019178,2]
[315398593,1709011832883,-500.0,0.00019178,2]
[315398594,1709011832893,-1105.9,0.00019178,2]
[315398595,1709011832902,-151.0,0.00019178,2]
[315398596,1709011832912,-501.00756366,0.00019178,2]
[315398597,1709011832921,-500.0,0.00019178,2]
[315398598,1709011832930,-500.0,0.00019178,2]
[315398599,1709011832940,-468.65722539,0.00019178,2]
[315398600,1709011832949,-659.62,0.00019178,2]
[315398601,1709011832958,-500.0,0.00019178,2]
[315398602,1709011832967,-550.41,0.00019178,2]
[315398603,1709011833088,-550.41,0.00019178,2]
[315398604,1709011833097,-550.41,0.00019178,2]
[315398605,1709011833106,-550.41,0.00019178,2]
[315398606,1709011833116,-550.41,0.00019178,2]
[315398607,1709011833125,-500.0,0.00019178,2]
[315398608,1709011833134,-421.66620567,0.00019178,2]
[315398609,1709011833144,-500.0,0.00019178,2]
[315398610,1709011833153,-500.0,0.00019178,2]
[315398611,1709011833162,-2750.49,0.00019178,2]
[315398612,1709011833172,-1120.73,0.00019178,2]
[315398613,1709011833181,-500.0,0.00019178,2]
[315398614,1709011833190,-501.79239034,0.00019178,2]
[315398615,1709011833200,-418.60557708,0.00019178,2]
[315398616,1709011833209,-500.0,0.00019178,2]
[315398617,1709011833219,-500.0,0.00019178,2]
[315398618,1709011833228,-500.0,0.00019178,2]
[315398619,1709011833238,-1778.14,0.00019178,2]
[315398620,1709011833247,-500.0,0.00019178,2]
[315398621,1709011833257,-500.0,0.00019178,2]
[315398622,1709011833266,-500.0,0.00019178,2]
[315398623,1709011833275,-500.0,0.00019178,2]
[315398624,1709011833284,-500.0,0.00019178,2]
[315398625,1709011833294,-501.65610853,0.00019178,2]
[315398626,1709011833303,-500.0,0.00019178,2]
[315398627,1709011833312,-500.0,0.00019178,2]
[315398628,1709011833322,-500.0,0.00019178,2]
[315398629,1709011833331,-1589.52,0.00019178,2]
[315398630,1709011833341,-500.0,0.00019178,2]
[315398631,1709011833350,-500.42301323,0.00019178,2]
[315398632,1709011833359,-500.0,0.00019178,2]
[315398633,1709011833370,-500.0,0.00019178,2]
[315398634,1709011833379,-1112.04,0.00019178,2]
[315398635,1709011833388,-500.0,0.00019178,2]
[315398636,1709011833397,-500.0,0.00019178,2]
[315398637,1709011833407,-500.0,0.00019178,2]
[315398638,1709011833417,-500.0,0.00019178,2]
[315398639,1709011833426,-13854.33,0.00019178,2]
[315398640,1709011833436,-500.0,0.00019178,2]
[315398641,1709011833445,-500.0,0.00019178,2]
[315398642,1709011833454,-503.1173784,0.00019178,2]
[315398643,1709011833463,-1369.18,0.00019178,2]
[315398644,1709011833473,-500.0,0.00019178,2]
[315398645,1709011833482,-500.46925039,0.00019178,2]
[315398646,1709011833491,-1316.84589238,0.00019178,2]
[315398672,1709011839809,-500.0,0.00019178,2]
[315398673,1709011839819,-312.19545452,0.00019178,2]
[315398674,1709011839832,-187.80454548,0.00019178,2]
[315398675,1709011839842,-500.0,0.00019178,2]
[315398676,1709011839851,-500.0,0.00019178,2]
[315398677,1709011839862,-500.0,0.00019178,2]
[315398678,1709011839871,-500.0,0.00019178,2]
[315398679,1709011839880,-500.0,0.00019178,2]
[315398680,1709011839890,-501.22080587,0.00019178,2]
[315398681,1709011839900,-588.85,0.00019178,2]
[315398682,1709011839909,-500.0,0.00019178,2]
[315398683,1709011839919,-673.52,0.00019178,2]
[315398684,1709011839928,-219.97376393,0.00019178,2]
[315398685,1709011839937,-500.0,0.00019178,2]
[315398686,1709011839946,-500.0,0.00019178,2]
[315398687,1709011839955,-1102.6,0.00019178,2]
[315398688,1709011839965,-7587.69,0.00019178,2]
[315398689,1709011839974,-500.0,0.00019178,2]
[315398690,1709011839983,-671.81,0.00019178,2]
[315398691,1709011839992,-863.19,0.00019178,2]
[315398692,1709011840002,-500.0,0.00019178,2]
[315398694,1709011840012,-500.0,0.00019178,2]
[315398695,1709011840021,-2918.88,0.00019178,2]
[315398696,1709011840030,-500.0,0.00019178,2]
[315398697,1709011840039,-500.0,0.00019178,2]
[315398698,1709011840048,-500.0,0.00019178,2]
[315398699,1709011840058,-634.37,0.00019178,2]
[315398700,1709011840068,-500.0,0.00019178,2]
[315398701,1709011840079,-500.0,0.00019178,2]
[315398702,1709011840089,-500.0,0.00019178,2]
[315398703,1709011840100,-500.0,0.00019178,2]
[315398704,1709011840110,-501.62472493,0.00019178,2]
[315398705,1709011840120,-500.0,0.00019178,2]
[315398706,1709011840129,-500.0,0.00019178,2]
[315398707,1709011840138,-1175.17,0.00019178,2]
[315398708,1709011840148,-500.91730771,0.00019178,2]
[315398709,1709011840158,-500.0,0.00019178,2]
[315398710,1709011840167,-500.0,0.00019178,2]
[315398711,1709011840176,-500.0,0.00019178,2]
[315398713,1709011840185,-500.0,0.00019178,2]
[315398714,1709011840194,-500.0,0.00019178,2]
[315398715,1709011840204,-1038.01,0.00019178,2]
[315398716,1709011840213,-645.03411063,0.00019178,2]
[315398717,1709011840222,-303.42787802,0.00019178,2]
[315398718,1709011840231,-500.0,0.00019178,2]
[315398719,1709011840241,-500.0,0.00019178,2]
[315398721,1709011840250,-714.19,0.00019178,2]
[315398723,1709011840259,-2154.72,0.00019178,2]
[315398724,1709011840268,-500.26744116,0.00019178,2]
[315398725,1709011840278,-501.9436783,0.00019178,2]
[315398726,1709011840286,-500.0,0.00019178,2]
[315398728,1709011840297,-5492.71,0.00019178,2]
[315398729,1709011840306,-500.0,0.00019178,2]
[315398730,1709011840316,-14437.31,0.00019178,2]
[315398731,1709011840326,-728.64,0.00019178,2]
[315398732,1709011840335,-500.0,0.00019178,2]
[315398733,1709011840345,-3152.85,0.00019178,2]
[315398734,1709011840354,-500.0,0.00019178,2]
[315398735,1709011840363,-501.36407866,0.00019178,2]
[315398736,1709011840373,-500.0,0.00019178,2]
[315398737,1709011840382,-500.0,0.00019178,2]
[315398738,1709011840391,-500.0,0.00019178,2]
[315398739,1709011840401,-500.0,0.00019178,2]
[315398740,1709011840410,-500.0,0.00019178,2]
[315398741,1709011840419,-500.0,0.00019178,2]
[315398742,1709011840429,-1602.19,0.00019178,2]
[315398744,1709011840438,-500.0,0.00019178,2]
[315398746,1709011840447,-500.0,0.00019178,2]
[315398747,1709011840456,-554.1,0.00019178,2]
[315398749,1709011840465,-1533.72,0.00019178,2]
[315398750,1709011840474,-500.0,0.00019178,2]
[315398751,1709011840483,-500.0,0.00019178,2]
[315398752,1709011840493,-1942.6,0.00019178,2]
[315398753,1709011840502,-500.0,0.00019178,2]
[315398754,1709011840511,-259.29438802,0.00019178,2]
[315398755,1709011840521,-500.0,0.00019178,2]
[315398756,1709011840531,-500.0,0.00019178,2]
[315398757,1709011840541,-401.70891154,0.00019178,2]
[315398758,1709011840552,-500.0,0.00019178,2]
[315398759,1709011840561,-3110.62,0.00019178,2]
[315398760,1709011840571,-500.0,0.00019178,2]
[315398761,1709011840580,-500.39586929,0.00019178,2]
[315398762,1709011840590,-443.10422866,0.00019178,2]
[315398763,1709011840599,-500.0,0.00019178,2]
[315398764,1709011840609,-500.0,0.00019178,2]
[315398765,1709011840618,-2338.99,0.00019178,2]
[315398766,1709011840629,-500.0,0.00019178,2]
[315398767,1709011840638,-500.0,0.00019178,2]
[315398768,1709011840649,-500.0,0.00019178,2]
[315398769,1709011840658,-2367.76,0.00019178,2]
[315398770,1709011840667,-500.0,0.00019178,2]
[315398771,1709011840676,-500.0,0.00019178,2]
[315398772,1709011840686,-500.67580525,0.00019178,2]
[315398773,1709011840695,-542.77,0.00019178,2]
[315398774,1709011840704,-500.0,0.00019178,2]
[315398775,1709011840714,-500.0,0.00019178,2]
[315398776,1709011840723,-500.0,0.00019178,2]
[315398777,1709011840732,-582.50913426,0.00019178,2]
[315398778,1709011840741,-1167.25,0.00019178,2]
[315398779,1709011840750,-1507.71,0.00019178,2]
[315398780,1709011840760,-500.0,0.00019178,2]
[315398781,1709011840769,-1002.42085392,0.00019178,2]
[315398782,1709011840778,-162.470533,0.00019178,2]
[315398783,1709011840787,-166.878769,0.00019178,2]
[315398784,1709011840796,-166.666666,0.00019178,2]
[315398785,1709011840805,-500.0,0.00019232,2]
[315398786,1709011840815,-500.0,0.00019287,2]
[315398787,1709011840824,-500.0,0.00019342,2]
[315398788,1709011840833,-1082.19335375,0.00019352,2]
[315398789,1709011840842,-500.0,0.00019396,2]
[315398790,1709011840851,-306.0,0.000194,2]
[315398791,1709011840861,-153.0,0.000194,2]
[315398792,1709011840870,-153.0,0.000194,2]
[315398793,1709011840879,-153.0,0.000194,2]
[315398794,1709011840888,-153.0,0.000194,2]
[315398795,1709011840897,-153.0,0.000194,2]
[315398796,1709011840906,-500.0,0.00019451,2]
[315398797,1709011840915,-500.0,0.00019451,2]
[315398798,1709011840924,-550.41,0.00019451,2]
[315398799,1709011840933,-550.41,0.00019451,2]